Cogmind - Beta 16.1 @@@ ROGUE MODE // 2026.02.22 @ 17:12:44 Player: beans Result: Destroyed self with Mini Grenade Launcher Performance ------------- Evolutions (1) 500 Regions Visited (6) 1200 Robots Destroyed (44) 220 Value Destroyed (672) 672 Prototype IDs (25) 500 Alien Tech Used (0) 0 Bonus (165) 165 TOTAL SCORE: 3257 Bonus ------- Follower Combat Kills 49 Aligned with FarCom 300 Friendly Fire -184 Cogmind --------- Core Integrity 0/400 Matter 280/300 Energy 100/100 System Corruption 0% Temperature Cool (0) Movement Walking (190) Ox1 Location -8/Mines Parts ------- > --- POWER (1) -------- (None) > --- PROPULSION (2) --- Carbon-fiber Leg > --- UTILITY (2) ------ Improved Heat Sink Small Storage Unit > --- WEAPON (4) ------- Beamcaster Improved Light Cannon Rocket Launcher Mini Grenade Launcher > --- INVENTORY (8) ---- Flying Fortress v7 Superbattery (1500) Core Shielding Firepult Peak State ------------ > --- POWER ------------ (None) > --- PROPULSION ------- Carbon-fiber Leg > --- UTILITY ---------- Improved Heat Sink Superbattery > --- WEAPON ----------- Beamcaster Firepult Improved Light Cannon > --- INVENTORY -------- Rocket Launcher Mini Grenade Launcher [Rating: 43] Favorites ----------- Power None Propulsion Carbon-fiber Leg Treads Light Treads Leg Carbon-fiber Leg Utility Improved Heat Sink Device Improved Heat Sink Storage Small Storage Unit Processor Machine Analyzer Weapon Improved Light Cannon Energy Gun Beamcaster Energy Cannon Firepult Ballistic Gun Light Assault Rifle Ballistic Cannon Improved Light Cannon Launcher Rocket Launcher Build | -11 -10 -10 -9 -9 -9 -8 ------- Run | Yrd Mat Min Mat Min Exi Min Slots Evolved 2 | . . . 2 . . . Power . | . . . . . . . Propulsion . | . . . . . . . Utility . | . . . . . . . Weapon 2 | . . . 2 . . . Parts Attached 23 | 4 1 2 7 4 5 . Power . | . . . . . . . Engine . | . . . . . . . Core . | . . . . . . . Reactor . | . . . . . . . Propulsion 4 | 2 . . 1 1 . . Treads 1 | . . . 1 . . . Leg 3 | 2 . . . 1 . . Wheel . | . . . . . . . Hover . | . . . . . . . Flight . | . . . . . . . Utility 5 | . 1 . 1 1 2 . Device 1 | . . . . 1 . . Storage 3 | . 1 . . . 2 . Processor 1 | . . . 1 . . . Hackware . | . . . . . . . Protection . | . . . . . . . Artifact . | . . . . . . . Weapon 14 | 2 . 2 5 2 3 . Energy Gun 2 | . . . 1 1 . . Energy Cannon 1 | . . . . . 1 . Ballistic Gun 6 | 2 . . 4 . . . Ballistic Cannon 1 | . . . . 1 . . Launcher 4 | . . 2 . . 2 . Special Weapon . | . . . . . . . Impact Weapon . | . . . . . . . Slashing Weapon . | . . . . . . . Piercing Weapon . | . . . . . . . Special Melee Weapon . | . . . . . . . Unidentified Prototypes 2 | . . . 2 . . . Parts Lost 10 | . . 5 4 1 . . Power . | . . . . . . . Propulsion 3 | . . 2 1 . . . Utility . | . . . . . . . Weapon 7 | . . 3 3 1 . . Highest Loss Streak 5 | . . 5 4 1 . . To Critical Strikes . | . . . . . . . Average Backups 2 | 2 1 2 . 1 2 4 Power . | . . . . . . . Propulsion . | . . . . . . 1 Utility . | . . . . . 1 2 Weapon 1 | 2 1 2 . 1 1 1 Tool/Special . | . . . . . . . Unused Backups 3 | . . . . . 1 2 Power . | . . . . . . . Propulsion 1 | . . . . . . 1 Utility 2 | . . . . . 1 1 Weapon . | . . . . . . . Tool/Special . | . . . . . . . Average Slot Usage (%) 62 | . 70 52 40 44 69 77 Treads 1 | . . . 7 . . . Leg 11 | . 28 20 . 7 11 11 Device 6 | . . . . 7 9 11 Storage 7 | . 13 10 . . 8 11 Processor 2 | . . . 3 11 2 . Energy Gun 7 | . . . . 7 11 11 Ballistic Gun 8 | . 28 19 29 1 . . Ballistic Cannon 7 | . . . . 8 11 11 Launcher 10 | . . . . . 16 22 Peak Build Rating 43 | 4 5 6 11 19 43 24 Average Rating 15 | 1 4 3 6 12 22 24 On Entrance 7 | . 4 5 . 3 16 24 Avg Prop Armor Cover (%) . | . . . . . . . Naked Turns 89 | . . 84 5 . . . Heaviest Build 25 | 2 22 25 8 13 20 20 Greatest Support 20 | 20 20 20 20 15 15 15 Greatest Overweight (x) 2 | . 1 2 1 1 1 1 Average Overweight (x) . | . . . . . . 1 Largest Inventory Capacity 15 | 5 15 15 5 5 8 8 Average Capacity 7 | 5 14 12 5 5 6 8 Most Carried 8 | 5 2 4 3 4 8 8 Average Carried 4 | 2 1 2 . 1 4 8 Final Capacity 15 | 5 15 5 5 5 8 8 Final Carried 8 | 1 2 2 2 4 8 8 Class Distribution -------------------- 31% | Skirmisher 27% | Mutant 21% | Gunner 14% | Scavenger-Mutant 5% | Scavenger-Skirmisher Dominant Class ---------------- Mutant | -10/Materials Mutant | -10/Mines Mutant | -9/Materials Scavenger-Mutant | -9/Mines Gunner | -9/Exiles Skirmisher | -8/Mines Resources | -11 -10 -10 -9 -9 -9 -8 ----------- Run | Yrd Mat Min Mat Min Exi Min Matter Collected 957 | 184 . 54 441 145 . 133 Remotely . | . . . . . . . Salvage Created 1213 | . . 73 684 289 . 167 Parts 87 | . . 6 50 18 . 13 Haulers Intercepted . | . . . . . . . Recyclers Shooed 1 | . . . 1 . . . Parts Field Recycled . | . . . . . . . Retrieved Matter . | . . . . . . . Parts Self-Destructed . | . . . . . . . Prevented . | . . . . . . . Parts Restored . | . . . . . . . Kills | -11 -10 -10 -9 -9 -9 -8 ------- Run | Yrd Mat Min Mat Min Exi Min Combat Hostiles Destroyed 39 | . . 11 16 4 . 8 Guns 24 | . . 3 16 1 . 4 Cannons 3 | . . . . 3 . . AOE 12 | . . 8 . . . 4 Classes Destroyed 10 | . . 2 7 1 . . Worker 2 | . . . 1 . . 1 Builder 2 | . . . 1 . . 1 Tunneler 1 | . . . . 1 . . Recycler 4 | . . . 2 2 . . Mechanic 2 | . . . 2 . . . Watcher 1 | . . . 1 . . . Swarmer 22 | . . 3 9 4 . 6 Grunt 7 | . . . 5 . . 2 Sentry 2 | . . . 2 . . . Assembled 8 | . . 8 . . . . Thug 1 | . . . . 1 . . Best Kill Streak 8 | . . 8 8 4 . 5 Combat Bots Only 8 | . . 8 6 3 . 3 Max Kills in Single Turn 4 | . . 3 2 1 . 4 Gunslinging 1 | . . 1 1 . . . Exploded 3 | . . 3 . . . 3 Melee . | . . . . . . . Uniques/NPCs Destroyed . | . . . . . . . Combat | -11 -10 -10 -9 -9 -9 -8 -------- Run | Yrd Mat Min Mat Min Exi Min Hostile Shots Fired 205 | . . 37 130 20 . 18 Missed 59 | . . 2 47 4 . 6 Hits 146 | . . 35 83 16 . 12 Melee 11 | . . 11 . . . . Projectile 135 | . . 24 83 16 . 12 Critical Strikes 1 | . . . 1 . . . Damage Taken 1859 | . . 694 858 134 . 173 Core 679 | . . 248 341 30 . 60 Absorbed by Shields . | . . . . . . . Regen/Repaired (Parts) 17 | . . . 17 . . . Core Remaining (%) 50 | 100 . . . . . . Volleys Fired 104 | . 1 8 68 16 . 11 Largest 4 | . 2 2 4 3 . 2 Hottest 131 | . 40 53 86 131 . 108 Shots Fired 239 | . 2 13 168 36 . 20 Gun 207 | . 2 9 168 20 . 8 Cannon 24 | . . . . 16 . 8 Launcher 8 | . . 4 . . . 4 Special . | . . . . . . . Kinetic 209 | . 2 9 168 22 . 8 Thermal 22 | . . . . 14 . 8 Explosive 8 | . . 4 . . . 4 Electromagnetic . | . . . . . . . Robot Hit Streak 20 | . . 7 20 5 . 2 Robot Miss Streak 6 | . 2 4 6 2 . 2 Penetration Max . | . . . . . . . Secondary Targets 6 | . . 1 5 . . . Max Gunslinging Chain 1 | . . 1 1 . . . Shots Hit Robots 131 | . . 9 94 19 . 9 Core Hits 87 | . . 22 42 10 . 13 Critical Kills . | . . . . . . . Critical Parts Destroyed 1 | . . . 1 . . . Critical Strikes 2 | . . . 1 . . 1 Burn 1 | . . . . . . 1 Destroy 1 | . . . 1 . . . Melee Attacks . | . . . . . . . Impact . | . . . . . . . Slashing . | . . . . . . . Piercing . | . . . . . . . Sneak Attacks . | . . . . . . . Combat Hostiles . | . . . . . . . Follow-up Attacks . | . . . . . . . Damage Inflicted 2722 | . . 649 1005 425 . 643 Guns 1422 | . . 53 1005 218 . 146 Cannons 226 | . . . . 207 . 19 Explosions 1074 | . . 596 . . . 478 Melee . | . . . . . . . Ramming . | . . . . . . . Kinetic 1356 | . . 53 1005 279 . 19 Thermal 292 | . . . . 146 . 146 Explosive 1074 | . . 596 . . . 478 Electromagnetic . | . . . . . . . Impact . | . . . . . . . Slashing . | . . . . . . . Piercing . | . . . . . . . Highest Corruption 2 | . . 2 . . . . Average Corruption 2 | . . 2 . . . . Corruption Purged . | . . . . . . . Corruption Blocked . | . . . . . . . Effects 1 | . . 1 . . . . Heat Flow Errors 1 | . . 1 . . . . Overload Shots . | . . . . . . . Overflow Damage 7 | . . 5 . 2 . . Projectiles 2 | . . . . 2 . . Explosions 5 | . . 5 . . . . Melee . | . . . . . . . Knockbacks 2 | . . . . 1 . 1 Impact . | . . . . . . . Kinetic 1 | . . . . 1 . . Secondary 1 | . . . . . . 1 Self-Inflicted Damage 166 | . . 125 . . . 41 Shots 4 | . . 3 . . . 1 Rammed . | . . . . . . . Targets Rammed . | . . . . . . . Kicked . | . . . . . . . Crushed . | . . . . . . . Highest Temperature 98 | . . 98 78 6 . 3 Average Temperature 23 | . . 33 30 2 . 3 Received Heat Transfer 287 | . . 89 153 9 . 36 Siege Activations . | . . . . . . . Martial Activations . | . . . . . . . Shielding Activations . | . . . . . . . Robots Disrupted . | . . . . . . . Combat Hostiles . | . . . . . . . Robots Corrupted . | . . . . . . . Combat Hostiles . | . . . . . . . Parts Fried . | . . . . . . . Impact Corruptions . | . . . . . . . Robots Melted . | . . . . . . . Combat Hostiles . | . . . . . . . Parts Melted 1 | . . . . . . 1 Heat Transferred 592 | . . . . 259 . 333 Parts Sabotaged . | . . . . . . . Parts Stolen . | . . . . . . . Parts Stripped . | . . . . . . . Power Chain Reactions . | . . . . . . . Alert | -11 -10 -10 -9 -9 -9 -8 ------- Run | Yrd Mat Min Mat Min Exi Min Maximum Alert Level 1 | . . . 1 . . . Low Security (%) 97 | 100 100 100 83 100 . 100 Level 1 2 | . . . 16 . . . Level 2 . | . . . . . . . Level 3 . | . . . . . . . Level 4 . | . . . . . . . Level 5 . | . . . . . . . High Security . | . . . . . . . Max Security . | . . . . . . . Peak Influence 232 | . . 70 232 111 . 73 Initial 83 | . . . 9 83 . . Average 32 | . . 17 85 49 . 12 Influence Increases 988 | . . 141 422 166 . 259 Destroy 0b10 Robot/C 680 | . . 60 320 120 . 180 Destroy 0b10 Robot/NC 60 | . . . 35 15 . 10 Destroy Leader 112 | . . 10 52 20 . 30 Allied During Kill 19 | . . . . 11 . 8 Disable Machine 15 | . . . 15 . . . Destroy Structure 57 | . . 26 . . . 31 Lose Combat Pursuer 45 | . . 45 . . . . Influence Decreases 890 | . . 116 233 323 57 161 Entered New Map 204 | . . . 16 131 57 . Time Decay 557 | . . 90 177 182 . 108 Lost Part 76 | . . 26 40 10 . . Lost Ally 53 | . . . . . . 53 Squads Dispatched 2 | . . . 2 . . . Investigation 1 | . . . 1 . . . Extermination . | . . . . . . . Reinforcement 1 | . . . 1 . . . Assault . | . . . . . . . Garrison . | . . . . . . . Intercept . | . . . . . . . Searches Triggered . | . . . . . . . Construction Impeded . | . . . . . . . Haulers Reinforced . | . . . . . . . Active Scanning Responses . | . . . . . . . Cargo Convoy Interrupts . | . . . . . . . Stealth | -11 -10 -10 -9 -9 -9 -8 --------- Run | Yrd Mat Min Mat Min Exi Min Distress Signals 4 | . . . 4 . . . Communications Jammed . | . . . . . . . Distress Signals . | . . . . . . . Times Spotted 73 | . . 27 31 6 . 9 Peak Tracking Total 18 | . 1 18 9 3 . 4 Tactical Retreats 4 | . . 4 . . . . Traps | -11 -10 -10 -9 -9 -9 -8 ------- Run | Yrd Mat Min Mat Min Exi Min Traps Triggered 1 | . . . 1 . . . Indirectly . | . . . . . . . Trap Hack Attempts . | . . . . . . . Triggered . | . . . . . . . Disarmed . | . . . . . . . Reprogrammed . | . . . . . . . Reused . | . . . . . . . Traps Extracted . | . . . . . . . Installed . | . . . . . . . Triggered . | . . . . . . . Machines | -11 -10 -10 -9 -9 -9 -8 ---------- Run | Yrd Mat Min Mat Min Exi Min Machines Disabled 1 | . . . 1 . . . Max in Single Turn 1 | . . . 1 . . . Machines Repaired . | . . . . . . . Machines Dismantled . | . . . . . . . Machines Sabotaged . | . . . . . . . Overloaded Fab Kills . | . . . . . . . Hacking | -11 -10 -10 -9 -9 -9 -8 --------- Run | Yrd Mat Min Mat Min Exi Min Machines Accessed 2 | . . . 1 . 1 . Terminals . | . . . . . . . Fabricators . | . . . . . . . Repair Stations 1 | . . . 1 . . . Recycling Units . | . . . . . . . Scanalyzers . | . . . . . . . Garrison Access . | . . . . . . . Total Hacks 4 | . . . 3 . 1 . Successful 3 | . . . 2 . 1 . Failed 1 | . . . 1 . . . Catastrophic . | . . . . . . . Database Lockouts . | . . . . . . . Manual 1 | . . . . . 1 . Terminals . | . . . . . . . Fabricators . | . . . . . . . Repair Stations 3 | . . . 3 . . . Recycling Units . | . . . . . . . Scanalyzers . | . . . . . . . Garrison Access . | . . . . . . . Terminal Hacks 1 | . . . . . 1 . Proto ID Catalog 1 | . . . . . 1 . Fabricator Hacks . | . . . . . . . Repair Station Hacks 2 | . . . 2 . . . Scan Component 1 | . . . 1 . . . Repair 1 | . . . 1 . . . Recycling Unit Hacks . | . . . . . . . Scanalyzer . | . . . . . . . Garrison Access Hacks . | . . . . . . . Unauthorized Hacks . | . . . . . . . Terminals . | . . . . . . . Fabricators . | . . . . . . . Repair Stations . | . . . . . . . Recycling Units . | . . . . . . . Scanalyzers . | . . . . . . . Garrison Access . | . . . . . . . Data Cores Recovered . | . . . . . . . Used . | . . . . . . . Hacking Detections 1 | . . . 1 . . . Full Trace Events 1 | . . . 1 . . . Feedback Events . | . . . . . . . Feedback Blocked . | . . . . . . . Robot Schematics Acquired . | . . . . . . . Robots Built . | . . . . . . . Authchips . | . . . . . . . Time . | . . . . . . . Total Robot Build Rating . | . . . . . . . Part Schematics Acquired . | . . . . . . . Parts Built . | . . . . . . . Authchips . | . . . . . . . Time . | . . . . . . . Total Part Build Rating . | . . . . . . . Part Studies Acquired . | . . . . . . . Parts Repaired 1 | . . . 1 . . . Time 51 | . . . 51 . . . Parts Recycled . | . . . . . . . Recycled Matter . | . . . . . . . Retrieved Matter . | . . . . . . . Retrieved Components . | . . . . . . . Parts Scanalyzed . | . . . . . . . Part Schematics Acquired . | . . . . . . . Parts Damaged . | . . . . . . . Bothacking | -11 -10 -10 -9 -9 -9 -8 ------------ Run | Yrd Mat Min Mat Min Exi Min Used RIF Installer . | . . . . . . . Robots Hacked . | . . . . . . . Non-combat . | . . . . . . . Combat . | . . . . . . . Robot Hacks Applied . | . . . . . . . Relay Couplers Released . | . . . . . . . Fabnet Peak Effective % . | . . . . . . . Robots Rewired . | . . . . . . . Allies Hacked . | . . . . . . . Hacks Repelled . | . . . . . . . Allies | -11 -10 -10 -9 -9 -9 -8 -------- Run | Yrd Mat Min Mat Min Exi Min Total Allies 3 | . . . . 3 . . Largest Group 3 | . . . . 3 3 3 Highest-Rated Group 40 | . . . . 40 40 40 Highest-Rated Ally 16 | . . . . 16 16 16 Total Orders . | . . . . . . . Ally Attacks 26 | . . . . 10 . 16 Total Damage 242 | . . . . 99 . 143 Kills 3 | . . . . 2 . 1 Allies Corrupted . | . . . . . . . Allies Melted . | . . . . . . . Intel | -11 -10 -10 -9 -9 -9 -8 ------- Run | Yrd Mat Min Mat Min Exi Min Active Infowar (turns) 743 | . . . 147 442 154 . Machine Analysis 743 | . . . 147 442 154 . Robot Analysis Total . | . . . . . . . Derelict Logs Recovered 2 | . . 2 . . . . Drone Launches . | . . . . . . . Drone Recoveries . | . . . . . . . Exploration | -11 -10 -10 -9 -9 -9 -8 ------------- Run | Yrd Mat Min Mat Min Exi Min Turns Passed 3002 | 30 193 333 416 442 685 903 Spaces Moved 1421 | 35 101 283 164 254 371 213 Core 337 | 29 . 169 102 37 . . Treads 62 | . . . 62 . . . Legs 1022 | 6 101 114 . 217 371 213 Wheels . | . . . . . . . Hover . | . . . . . . . Flight . | . . . . . . . Fastest Speed 50 | 50 120 50 50 50 120 190 Average Speed 139 | 62 186 106 99 111 166 190 Slowest Speed 260 | 120 190 260 160 120 190 190 Overloaded Moves . | . . . . . . . Propulsion Burnouts . | . . . . . . . Robots Hopped . | . . . . . . . Potential Cave-ins . | . . . . . . . Cave-ins Triggered . | . . . . . . . Exploration Rate (%) 39 | 3 23 75 23 55 65 33 Regions Visited 6 Branch Regions 4 Pre-discovered Areas 1 | . . 1 . . . . Known Exits Taken . | . . . . . . . Unknown Exits Taken 6 | 1 1 1 1 1 1 . Scrap Searched 3 | . . . . 2 . 1 Spaces Dug 24 | . . . . . . 24 Terrain Destroyed 81 | . . 30 . . . 51 Melee . | . . . . . . . Projectile 2 | . . . . . . 2 AOE 79 | . . 30 . . . 49 Terrain Rammed . | . . . . . . . Walls Destroyed . | . . . . . . . Machines Disabled . | . . . . . . . Actions | -11 -10 -10 -9 -9 -9 -8 --------- Run | Yrd Mat Min Mat Min Exi Min Total 2279 | 43 104 302 315 381 441 693 Wait 687 | . . 6 63 98 51 469 Move 1415 | 34 100 282 163 253 370 213 Hop . | . . . . . . . Pick Up 28 | 5 2 1 8 7 5 . Fast Attach . | . . . . . . . Attach 29 | 4 1 2 9 6 7 . Detach 8 | . . 1 2 1 4 . Swap 2 | . . 1 . . 1 . Drop 6 | . . 1 2 . 3 . Fire 104 | . 1 8 68 16 . 11 Melee . | . . . . . . . Ram . | . . . . . . . Kick . | . . . . . . . Crush . | . . . . . . . Escape Stasis . | . . . . . . . Rewire . | . . . . . . . Trap . | . . . . . . . Miscellaneous . | . . . . . . . Route ------- -11/Scrapyard -10/Materials -10/Mines (discovered 2 exits: *Mat / [*Sub]) -9/Materials -9/Mines (discovered 2 exits: [*Mat] / *Exi) -9/Exiles -8/Mines History --------- Turn | Location | Event 8 | -11/Scrapyard | Discovered new exit (range 15) 31 | -11/Scrapyard | Entered Materials 195 | -10/Materials | Discovered new exit (range 16) 224 | -10/Materials | Entered Mines 286 | -10/Mines | Received a Rocket Launcher from a helpful Derelict 306 | -10/Mines | Build established: Mutant 440 | -10/Mines | Assembled infested the area 445 | -10/Mines | Assisted by a Guerilla fighting off Assembled 469 | -10/Mines | Discovered new exit (range 13) 470 | -10/Mines | Core integrity fell below 50% 473 | -10/Mines | Core integrity fell below 20% 491 | -10/Mines | Destroyed 8 combat bots 504 | -10/Mines | Lost 5 parts (2n3w) 510 | -10/Mines | Learned location of Zion (-7) 539 | -10/Mines | Learned 2 Materials zone layouts 554 | -10/Mines | Discovered new exit (range 5) 557 | -10/Mines | Entered Materials 557 | -9/Materials | Evolved 2 slots: Weapon x2 727 | -9/Materials | Repaired Imp. Assault Rifle 899 | -9/Materials | Core integrity fell below 50% 965 | -9/Materials | Core integrity fell below 20% 965 | -9/Materials | Discovered new exit (range 16) 973 | -9/Materials | Entered Mines 1003 | -9/Mines | Lost 4 parts (1n3w) 1038 | -9/Mines | Met a Derelict bent on vengeance 1114 | -9/Mines | Discovered new exit (range 10) 1282 | -9/Mines | Assisted by bots powering up and referring to "LRC-V3" 1399 | -9/Mines | Deemed a non-threat by the Exiles lab entrance 1399 | -9/Mines | Discovered new exit (range 5) 1415 | -9/Mines | Entered Exiles 1415 | -9/Exiles | Accompanied by 3 allies 1445 | -9/Exiles | Met 8R-AWN 1465 | -9/Exiles | Met EX-HEX 1499 | -9/Exiles | Met EX-BIN 1516 | -9/Exiles | Aligned with FarCom system 1517 | -9/Exiles | Given EX-Vault access code 1546 | -9/Exiles | Opened EX-Vault 1556 | -9/Exiles | Found Firepult 1561 | -9/Exiles | Found Superbattery 1660 | -9/Exiles | Warned to stay clear of 0b10 Research branches 1870 | -9/Exiles | Build established: Gunner 1904 | -9/Exiles | Found Flying Fortress v7 2003 | -9/Exiles | Met EX-DEC 2069 | -9/Exiles | Discovered new exit (range 14) 2100 | -9/Exiles | Stole three prototypes: Flying Fortress v7, Superbattery, Firepult 2100 | -9/Exiles | Entered Mines 2100 | -8/Mines | Accompanied by 3 allies 2393 | -8/Mines | Build established: Skirmisher 3003 | -8/Mines | Destroyed self with Mini Grenade Launcher Last Messages --------------- Found Trap Scanner. Found Arm. Wheel. Found 54 Matter. Slug penetrates Trooper 2b. Trooper 2b destroyed. Mercenary 2a destroyed. T-07 Excavator is excavating. K-01 Serf collects debris. Destroyed Flight Unit. S-10 Pest destroyed. K-01 Serf collects debris. S-10 Pest destroyed. Destroyed Flight Unit. Acquired 20 matter. S-10 Pest suffers critical hit (Burn). S-10 Pest destroyed. Acquired 4 matter. K-01 Serf collects debris. K-01 Serf destroyed. S-10 Pest destroyed. Map ----- +----------------------------------------------------+ | #??????????? | | ## #??????????? | | ?## #??????????? | | ??## ##??????????? | | ???## ###?????####??? | | ##### % ##??????## ##?? | | ## #???????# #?? | | # ##?????### = ##? | | # %#??????# % # ## | | ## ##%#??????# %# # | | ?## #### #??????# [ # # | | ??## ##??# #??###### ## ## | | ???#### #???# #?## ## # ###? | | ??????# #???#*#?# # ##??? | | ??????# #???#%### ###???? | | ??????# #####h## ##?????? | | ??????# =*%[%! % ##??????? | | ??????### %##### ##???????? | | ??####### ##??## ###????????? | | #???####??????????? | | """ """ """ #?????????????????? | | ?"" """ """ ####??????????????? | | ??? """ """ #?????#######??? | | ? ## ####### ##?? | | ## #?? | | # ###################### @ #?? | | ?????????????????????# %* #?? | | ?????????????????????## !% #?? | | ?????????????????????# % ##?? | | ?????????????????????####= ???? | | ????????????????????????#*#???? | | ???????????????????????? ???? | | ???????????????????????s"""???? | | ????????????????????????"""???? | | ??????????????????????? """???? | | ??????????????????????? ???? | | ??????????????????????????????? | | ??????????????????????????????? | | ??????????????????????????????? | | ??????????????????????????????? | | ??????????????????????????????? | | ??????????????????????????????? | | ??????????????????????????????? | | ??????????????????????????????? | | ??????????????????????????????? | | ??????????????????????????????? | | ??????????????????????????????? | | ??????????????????????????????? | | ??????????????????????????????? | | ??????????????????????????????? | +----------------------------------------------------+ Best States ------------- Heat Dissipation 42 Energy Generation 5 Energy Capacity 1600 Matter Stores 300 Matter Capacity 300 Sight Range 16 Terrain Scan Density 10 Evasion (%) 55 Recoil Reduction 1 Item Schematics ----------------- None Robot Schematics ------------------ None Fabricated ------------ Nothing Repaired ---------- Imp. Assault Rifle | 87% | -9/Materials Studied --------- None Alien Tech Used ----------------- None Achievements -------------- None Challenges ------------ None Game ------ Seed DeuteriumHugeSpiker Manual? 0 Play Time 00:15:50 Cumulative 241.4 hours Start 2026.02.22 @ 16:59:53 End 2026.02.22 @ 17:12:44 Sessions 1 Manual Loads 0 Difficulty Rogue Special Mode None Game No. 661 Rogue 659 Adventurer 2 Explorer 0 Win Type - Total 0 Types 0/0/0/0/0/0/0/0/0/0 Lore% 65 Gallery% 61 Achievement% 41 Wizard Run 0 Options --------- Layout 1 ASCII 0 Keyboard 0 Movement Mouse Keybinds 0 Fullscreen 1 Font 24/Smallcaps Map View 50x35 Zoom Use 0% Tactical HUD 0 Map Filters NONE Filters NONE Steam 1 RUN: 9a0f83a7-112b-499b-8d5c-6e10473932b9